Cogmind - Beta 12 @@@ ROGUE MODE // 2023.11.28 @ 15:03:27 Player: Dosh Result: Destroyed by Y-45 Defender with Heavy Assault Rifle Performance ------------- Evolutions (2) 1000 Regions Visited (6) 1200 Robots Destroyed (80) 400 Value Destroyed (2992) 2992 Prototype IDs (24) 480 Alien Tech Used (0) 0 Bonus (901) 901 TOTAL SCORE: 6973 Bonus ------- High Alert Combat Kills 401 Entered Garrisons 200 Aligned with FarCom 300 Cogmind --------- Core Integrity 0/550 Matter 225/300 Energy 69/100 System Corruption 0% Temperature Cool (9) Movement Treading (160) Location -8/Garrison Parts ------- > --- POWER (1) -------- (None) > --- PROPULSION (2) --- Heavy Treads > --- UTILITY (6) ------ High-capacity Storage Unit Improved Weapon Cycler Hacking Suite Hacking Suite System Shield System Shield > --- WEAPON (2) ------- Heavy Phase Cannon > --- INVENTORY (20) --- Light Treads Light Treads Light Treads Light Treads Armored Medium Treads Improved Heat Sink Huge Storage Unit Terrain Scanner Terrain Scan Processor Relay Coupler [Sentry] (25) Advanced System Restoration Module EM Pulse Cannon Heavy Particle Cannon YOLO Cannon Datajack Hammer Peak State ------------ > --- POWER ------------ Light Nuclear Core > --- PROPULSION ------- Heavy Treads > --- UTILITY ---------- High-capacity Storage Unit Improved Weapon Cycler Light Armor Plating Hacking Suite System Shield System Shield > --- WEAPON ----------- EM Pulse Cannon Heavy Phase Cannon > --- INVENTORY -------- Light Nuclear Core Light Treads Light Treads Light Treads Light Treads Armored Medium Treads Improved Heat Sink Huge Storage Unit Terrain Scanner Terrain Scan Processor Hacking Suite Relay Coupler [Sentry] Advanced System Restoration Module Heavy Particle Cannon YOLO Cannon Improved Grenade Launcher Datajack Hammer [Rating: 47] Favorites ----------- Power Cooled Ion Engine Engine Cooled Ion Engine Power Core Light Nuclear Core Propulsion Light Treads Treads Light Treads Utility System Shield Device Improved Sensor Array Storage High-capacity Storage Unit Processor Advanced Visual Processing Unit Hackware System Shield Protection Light Armor Plating Weapon Autogun Energy Gun Medium Laser Energy Cannon Ion Cannon Ballistic Gun Autogun Ballistic Cannon Assault Cannon Launcher Rocket Launcher Build | -11 -10 -10 -10 -9 -8 -8 ------- Run | Jun Mat Min Exi Min Mat Gar Slots Evolved 4 | . . . . . 4 . Power . | . . . . . . . Propulsion . | . . . . . . . Utility 4 | . . . . . 4 . Weapon . | . . . . . . . Parts Attached 67 | 6 9 1 1 . 31 19 Power 10 | 1 1 . . . 4 4 Engine 5 | 1 1 . . . 3 . Core 5 | . . . . . 1 4 Reactor . | . . . . . . . Propulsion 14 | 2 1 . . . 6 5 Treads 14 | 2 1 . . . 6 5 Leg . | . . . . . . . Wheel . | . . . . . . . Hover . | . . . . . . . Flight . | . . . . . . . Utility 19 | 1 3 . 1 . 11 3 Device 2 | . . . . . 1 1 Storage 3 | 1 1 . 1 . . . Processor 4 | . 1 . . . 3 . Hackware 4 | . . . . . 3 1 Protection 6 | . 1 . . . 4 1 Artifact . | . . . . . . . Weapon 24 | 2 4 1 . . 10 7 Energy Gun 1 | 1 . . . . . . Energy Cannon 5 | . . . . . 1 4 Ballistic Gun 10 | 1 4 . . . 4 1 Ballistic Cannon 3 | . . . . . 2 1 Launcher 5 | . . 1 . . 3 1 Special Weapon . | . . . . . . . Impact Weapon . | . . . . . . . Slashing Weapon . | . . . . . . . Piercing Weapon . | . . . . . . . Special Melee Weapon . | . . . . . . . Unidentified Prototypes 1 | . . . . . 1 . Parts Lost 21 | . 3 . . . 7 11 Power 5 | . 1 . . . 1 3 Propulsion 4 | . 1 . . . 2 1 Utility 4 | . . . . . 2 2 Weapon 8 | . 1 . . . 2 5 Highest Loss Streak 2 | . 2 . . . 2 2 To Critical Strikes . | . . . . . . . Average Slot Usage (%) 93 | . 92 100 100 100 94 89 Engine 7 | . 13 14 14 14 7 1 Core 2 | . . . . . 1 4 Treads 19 | . 22 28 28 28 17 16 Device 3 | . . . . . 7 2 Storage 10 | . 14 14 14 14 9 9 Processor 11 | . 7 14 14 14 16 6 Hackware 13 | . . . . . 11 27 Protection 4 | . 6 . . . 6 3 Energy Cannon 2 | . . . . . 3 4 Ballistic Gun 10 | . 26 14 14 14 7 2 Ballistic Cannon 4 | . . . . . 5 8 Launcher 2 | . . 13 14 14 . 1 Naked Turns . | . . . . . . . Heaviest Build 65 | 14 38 30 50 50 62 65 Greatest Support 70 | 40 40 40 40 40 43 70 Greatest Overweight (x) 1 | . 1 . 1 1 1 1 Average Overweight (x) . | . . . . 1 1 . Largest Inventory Capacity 20 | 8 15 15 20 20 20 20 Average Capacity 18 | 6 12 15 15 20 20 20 Most Carried 20 | 2 12 13 15 15 20 20 Average Carried 16 | 1 9 12 13 15 18 18 Final Capacity 20 | 8 15 15 20 20 20 20 Final Carried 20 | 2 11 13 15 15 20 17 Class Distribution -------------------- 36% | Hacker-Mutant 29% | Mutant 20% | Scavenger-Skirmisher 6% | Skirmisher 4% | Scavenger-Mutant Dominant Class ---------------- Mutant | -10/Materials Mutant | -10/Mines Mutant | -10/Exiles Mutant | -9/Mines Scavenger-Skirmisher | -8/Materials Hacker-Mutant | -8/Garrison Resources | -11 -10 -10 -10 -9 -8 -8 ----------- Run | Jun Mat Min Exi Min Mat Gar Matter Collected 2314 | 207 524 29 . . 817 737 Remotely . | . . . . . . . Salvage Created 2535 | . 559 15 . . 1050 911 Parts 154 | . 39 5 . . 72 38 Haulers Intercepted . | . . . . . . . Recyclers Shooed . | . . . . . . . Parts Field Recycled . | . . . . . . . Retrieved Matter . | . . . . . . . Parts Self-Destructed . | . . . . . . . Prevented . | . . . . . . . Kills | -11 -10 -10 -10 -9 -8 -8 ------- Run | Jun Mat Min Exi Min Mat Gar Combat Hostiles Destroyed 67 | . 13 2 . . 27 25 Guns 29 | . 13 . . . 10 6 Cannons 28 | . . . . . 11 17 AOE 10 | . . 2 . . 6 2 Classes Destroyed 10 | . 5 . . . 3 2 Worker 1 | . 1 . . . . . Builder 1 | . . . . . 1 . Tunneler 2 | . . . . . 2 . Operator 2 | . 2 . . . . . Watcher 7 | . 3 . . . 4 . Swarmer 16 | . 3 2 . . 11 . Cutter 2 | . . . . . . 2 Grunt 35 | . 10 . . . 8 17 Brawler 1 | . . . . . . 1 Sentry 13 | . . . . . 8 5 Best Kill Streak 5 | . 3 2 . . 5 3 Combat Bots Only 4 | . 3 2 . . 4 3 Max Kills in Single Turn 3 | . 1 2 . . 3 2 Gunslinging . | . . . . . . . Exploded 2 | . . 2 . . 2 1 Melee . | . . . . . . . Uniques/NPCs Destroyed . | . . . . . . . Combat | -11 -10 -10 -10 -9 -8 -8 -------- Run | Jun Mat Min Exi Min Mat Gar Damage Taken 4511 | . 755 21 . . 1296 2439 Core 667 | . 105 6 . . 148 408 Absorbed by Shields 14 | . . . . . . 14 Reduced by Siege Mode 12 | . . . . . . 12 Regen/Repaired (Parts) 399 | . . . . . 399 . Core Remaining (%) 77 | 100 . . . 55 . . Volleys Fired 259 | . 66 3 . . 80 110 Largest 2 | . 2 2 . . 2 2 Hottest 153 | . 46 56 . . 95 153 Shots Fired 476 | . 124 6 . . 154 192 Gun 237 | . 124 3 . . 64 46 Cannon 220 | . . . . . 82 138 Launcher 19 | . . 3 . . 8 8 Special . | . . . . . . . Kinetic 352 | . 124 3 . . 93 132 Thermal 97 | . . . . . 53 44 Explosive 19 | . . 3 . . 8 8 Electromagnetic 8 | . . . . . . 8 Robot Hit Streak 11 | . 11 3 . . 10 10 Robot Miss Streak 9 | . 4 3 . . 5 9 Penetration Max . | . . . . . . . Secondary Targets 3 | . 3 . . . . . Max Gunslinging Chain 1 | . 1 . . . . . Shots Hit Robots 276 | . 74 3 . . 92 107 Core Hits 147 | . 29 2 . . 51 65 Critical Kills 2 | . 1 . . . . 1 Critical Parts Destroyed . | . . . . . . . Critical Strikes 5 | . 1 . . . 1 3 Destroy 2 | . 1 . . . . 1 Blast 3 | . . . . . 1 2 Melee Attacks . | . . . . . . . Impact . | . . . . . . . Slashing . | . . . . . . . Piercing . | . . . . . . . Sneak Attacks . | . . . . . . . Combat Hostiles . | . . . . . . . Follow-up Attacks . | . . . . . . . Damage Inflicted 6249 | . 1188 218 . . 2175 2668 Guns 2210 | . 1156 30 . . 615 409 Cannons 2762 | . . . . . 1012 1750 Explosions 1146 | . . 188 . . 532 426 Melee . | . . . . . . . Ramming 131 | . 32 . . . 16 83 Kinetic 3431 | . 1156 30 . . 918 1327 Thermal 1474 | . . . . . 709 765 Explosive 1106 | . . 188 . . 532 386 Electromagnetic 107 | . . . . . . 107 Impact . | . . . . . . . Slashing . | . . . . . . . Piercing . | . . . . . . . Highest Corruption . | . . . . . . . Average Corruption . | . . . . . . . Corruption Purged . | . . . . . . . Corruption Blocked . | . . . . . . . Overload Shots . | . . . . . . . Overflow Damage 119 | . . 10 . . 52 57 Projectiles 14 | . . . . . 8 6 Explosions 105 | . . 10 . . 44 51 Melee . | . . . . . . . Knockbacks 28 | . 1 . . . 3 24 Impact 1 | . 1 . . . . . Kinetic 25 | . . . . . 3 22 Secondary 2 | . . . . . . 2 Self-Inflicted Damage 77 | . . . . . . 77 Shots 4 | . . . . . . 4 Rammed 30 | . 5 . . . 5 20 Targets Rammed 30 | . 5 . . . 5 20 Kicked . | . . . . . . . Crushed . | . . . . . . . Highest Temperature 441 | . 149 16 . . 441 436 Average Temperature 78 | . 36 12 . . 69 102 Received Heat Transfer 2050 | . 339 . . . 540 1171 Effects 7 | . . . . . 6 1 Interference 2 | . . . . . 2 . Short Circuit 1 | . . . . . . 1 Damage (major) 4 | . . . . . 4 . Siege Activations 1 | . . . . . . 1 Total Turns 16 | . . . . . . 16 Longest Duration 16 | . . . . . . 16 Robots Corrupted . | . . . . . . . Combat Hostiles . | . . . . . . . Parts Fried 1 | . . . . . . 1 Impact Corruptions . | . . . . . . . Robots Melted . | . . . . . . . Combat Hostiles . | . . . . . . . Parts Melted 1 | . . . . . 1 . Heat Transferred 2005 | . . . . . 1147 858 Parts Sabotaged . | . . . . . . . Parts Stolen . | . . . . . . . Parts Stripped . | . . . . . . . Power Chain Reactions 1 | . . . . . . 1 Missiles Intercepted . | . . . . . . . Alert | -11 -10 -10 -10 -9 -8 -8 ------- Run | Jun Mat Min Exi Min Mat Gar Peak Influence 1645 | . 162 112 . . 361 1645 Initial 152 | . . . . . . 152 Average 328 | . 50 88 . . 211 674 Maximum Alert Level 5 | . . . . . 1 5 Low Security (%) 42 | 100 100 100 . 100 34 9 Level 1 37 | . . . . . 65 31 Level 2 6 | . . . . . . 20 Level 3 6 | . . . . . . 20 Level 4 5 | . . . . . . 15 Level 5 1 | . . . . . . 3 High Security . | . . . . . . . Max Security . | . . . . . . . Squads Dispatched 4 | . 4 . . . . . Investigation 2 | . 2 . . . . . Extermination . | . . . . . . . Reinforcement 2 | . 2 . . . . . Assault . | . . . . . . . Garrison . | . . . . . . . Intercept . | . . . . . . . Searches Triggered . | . . . . . . . Construction Impeded . | . . . . . . . Haulers Reinforced . | . . . . . . . Active Scanning Responses . | . . . . . . . Cargo Convoy Interrupts . | . . . . . . . Stealth | -11 -10 -10 -10 -9 -8 -8 --------- Run | Jun Mat Min Exi Min Mat Gar Distress Signals 3 | . . . . . 3 . Communications Jammed . | . . . . . . . Distress Signals . | . . . . . . . Times Spotted 90 | . 22 3 . . 34 31 Peak Tracking Total 7 | . 3 1 . . 5 7 Tactical Retreats 9 | . . 3 . . 1 5 Traps | -11 -10 -10 -10 -9 -8 -8 ------- Run | Jun Mat Min Exi Min Mat Gar Traps Triggered 5 | . 2 . . . . 3 Indirectly . | . . . . . . . Trap Hack Attempts . | . . . . . . . Triggered . | . . . . . . . Disarmed . | . . . . . . . Reprogrammed . | . . . . . . . Reused . | . . . . . . . Traps Extracted . | . . . . . . . Installed . | . . . . . . . Triggered . | . . . . . . . Machines | -11 -10 -10 -10 -9 -8 -8 ---------- Run | Jun Mat Min Exi Min Mat Gar Machines Disabled 5 | . . . . . 3 2 Max in Single Turn 1 | . . . . . 1 1 Garrison Relay 2 | . . . . . . 2 Machines Repaired . | . . . . . . . Machines Sabotaged . | . . . . . . . Overloaded Fab Kills . | . . . . . . . Hacking | -11 -10 -10 -10 -9 -8 -8 --------- Run | Jun Mat Min Exi Min Mat Gar Machines Accessed 13 | . 1 . 1 . 8 3 Terminals 9 | . 1 . . . 5 3 Fabricators . | . . . . . . . Repair Stations 1 | . . . . . 1 . Recycling Units . | . . . . . . . Scanalyzers 1 | . . . . . 1 . Garrison Access 1 | . . . . . 1 . Total Hacks 41 | . 2 . 1 . 30 8 Successful 33 | . 1 . 1 . 28 3 Failed 8 | . 1 . . . 2 5 Catastrophic . | . . . . . . . Database Lockouts . | . . . . . . . Manual 11 | . 2 . 1 . 8 . Terminals 19 | . 2 . . . 9 8 Fabricators . | . . . . . . . Repair Stations 12 | . . . . . 12 . Recycling Units . | . . . . . . . Scanalyzers 8 | . . . . . 8 . Garrison Access 1 | . . . . . 1 . Terminal Hacks 5 | . . . 1 . 1 3 Record 1 | . . . . . 1 . Open Door 1 | . . . . . . 1 Emergency Access Points 1 | . . . . . . 1 Patrol Navigation 1 | . . . . . . 1 EX-Prototype ID Bank 1 | . . . 1 . . . Fabricator Hacks . | . . . . . . . Repair Station Hacks 12 | . . . . . 12 . Scan Component 6 | . . . . . 6 . Repair 6 | . . . . . 6 . Recycling Unit Hacks . | . . . . . . . Scanalyzer 8 | . . . . . 8 . Insert Component 4 | . . . . . 4 . Analyze 4 | . . . . . 4 . Garrison Access Hacks 1 | . . . . . 1 . Unlock Access 1 | . . . . . 1 . Unauthorized Hacks 7 | . 1 . . . 6 . Terminals 7 | . 1 . . . 6 . Track 1 | . . . . . 1 . Assimilate 2 | . 1 . . . 1 . Botnet 4 | . . . . . 4 . Fabricators . | . . . . . . . Repair Stations . | . . . . . . . Recycling Units . | . . . . . . . Scanalyzers . | . . . . . . . Garrison Access . | . . . . . . . Data Cores Recovered . | . . . . . . . Used . | . . . . . . . Hacking Detections 4 | . . . . . 3 1 Full Trace Events . | . . . . . . . Feedback Events . | . . . . . . . Feedback Blocked . | . . . . . . . Robot Schematics Acquired . | . . . . . . . Robots Built . | . . . . . . . Authchips . | . . . . . . . Time . | . . . . . . . Total Robot Build Rating . | . . . . . . . Part Schematics Acquired 4 | . . . . . 4 . Parts Built . | . . . . . . . Authchips . | . . . . . . . Time . | . . . . . . . Total Part Build Rating . | . . . . . . . Parts Repaired 6 | . . . . . 6 . Time 174 | . . . . . 174 . Parts Recycled . | . . . . . . . Recycled Matter . | . . . . . . . Retrieved Matter . | . . . . . . . Retrieved Components . | . . . . . . . Parts Scanalyzed 4 | . . . . . 4 . Part Schematics Acquired 4 | . . . . . 4 . Parts Damaged . | . . . . . . . Bothacking | -11 -10 -10 -10 -9 -8 -8 ------------ Run | Jun Mat Min Exi Min Mat Gar Used RIF Installer . | . . . . . . . Robots Hacked . | . . . . . . . Non-combat . | . . . . . . . Combat . | . . . . . . . Robot Hacks Applied . | . . . . . . . Relay Couplers Released 8 | . . . . . . 8 Machine Destruction 8 | . . . . . . 8 Fabnet Peak Effective % . | . . . . . . . Robots Rewired . | . . . . . . . Allies Hacked . | . . . . . . . Hacks Repelled . | . . . . . . . Allies | -11 -10 -10 -10 -9 -8 -8 -------- Run | Jun Mat Min Exi Min Mat Gar Total Allies 1 | . . . . . 1 . Largest Group 1 | . . . . . 1 1 Highest-Rated Group 10 | . . . . . 10 10 Highest-Rated Ally 10 | . . . . . 10 10 Total Orders . | . . . . . . . Ally Attacks . | . . . . . . . Total Damage . | . . . . . . . Kills . | . . . . . . . Allies Corrupted . | . . . . . . . Allies Melted . | . . . . . . . Intel | -11 -10 -10 -10 -9 -8 -8 ------- Run | Jun Mat Min Exi Min Mat Gar Robot Analysis Total . | . . . . . . . Derelict Logs Recovered 1 | . . 1 . . . . Drone Launches . | . . . . . . . Drone Recoveries . | . . . . . . . Exploration | -11 -10 -10 -10 -9 -8 -8 ------------- Run | Jun Mat Min Exi Min Mat Gar Turns Passed 9244 | 88 1602 337 481 159 3612 2965 Spaces Moved 3740 | 51 745 204 287 67 1252 1134 Core 3 | 3 . . . . . . Treads 3737 | 48 745 204 287 67 1252 1134 Legs . | . . . . . . . Wheels . | . . . . . . . Hover . | . . . . . . . Flight . | . . . . . . . Fastest Speed 50 | 50 160 160 160 240 240 160 Average Speed 211 | 153 185 160 167 240 240 218 Slowest Speed 245 | 160 240 160 240 240 240 245 Overloaded Moves . | . . . . . . . Propulsion Burnouts . | . . . . . . . Robots Hopped . | . . . . . . . Cave-ins Triggered . | . . . . . . . Exploration Rate (%) 54 | 5 93 48 61 20 75 76 Regions Visited 6 Branch Regions 3 Pre-discovered Areas . | . . . . . . . Known Exits Taken 5 | . 1 1 1 1 1 . Unknown Exits Taken 1 | 1 . . . . . . Scrap Searched 1 | . . 1 . . . . Spaces Dug 1 | . . . . . 1 . Terrain Destroyed 124 | . . 19 . . 46 59 Melee . | . . . . . . . Projectile 11 | . . . . . 9 2 AOE 113 | . . 19 . . 37 57 Terrain Rammed . | . . . . . . . Walls Destroyed . | . . . . . . . Machines Disabled . | . . . . . . . Actions | -11 -10 -10 -10 -9 -8 -8 --------- Run | Jun Mat Min Exi Min Mat Gar Total 4621 | 58 862 209 289 66 1702 1435 Wait 457 | . 21 . . . 309 127 Move 3734 | 50 744 203 286 66 1251 1134 Hop . | . . . . . . . Pick Up 41 | 2 12 2 1 . 14 10 Fast Attach 19 | 6 3 . . . 9 1 Attach 22 | . 2 . . . 8 12 Detach 7 | . 1 . . . 4 2 Swap 26 | . 4 1 1 . 14 6 Drop 22 | . 4 . 1 . 8 9 Fire 259 | . 66 3 . . 80 110 Melee . | . . . . . . . Ram . | . . . . . . . Kick . | . . . . . . . Crush 30 | . 5 . . . 5 20 Escape Stasis 4 | . . . . . . 4 Rewire . | . . . . . . . Trap . | . . . . . . . Miscellaneous . | . . . . . . . Route ------- -11/Junkyard -10/Materials (discovered 4 exits: *Mat x3 / *Min) -10/Mines -10/Exiles -9/Mines -8/Materials (discovered 2 exits: *Fac / Gar) -8/Garrison (discovered 3 exits: [*Mat x3]) History --------- Turn | Location | Event 6 | -11/Junkyard | Discovered new exit (range 15) 89 | -11/Junkyard | Entered Materials 312 | -10/Materials | Build established: Mutant 384 | -10/Materials | Discovered new exit (range 13) 584 | -10/Materials | Discovered new exit (range 10) 859 | -10/Materials | Identified exit to Materials 936 | -10/Materials | Discovered exit to Materials (range 16) 1053 | -10/Materials | Discovered exit to Materials (range 12) 1689 | -10/Materials | Identified exit to Mines 1691 | -10/Materials | Entered Mines 1699 | -10/Mines | Received a Rocket Launcher from a helpful Derelict 1985 | -10/Mines | Learned Materials security intel 2020 | -10/Mines | Deemed a non-threat by the Exiles lab entrance 2022 | -10/Mines | Discovered new exit (range 5) 2027 | -10/Mines | Identified exit to Exiles 2028 | -10/Mines | Entered Exiles 2068 | -10/Exiles | Met 8R-AWN 2096 | -10/Exiles | Met EX-HEX 2140 | -10/Exiles | Met EX-BIN 2230 | -10/Exiles | Aligned with FarCom system 2232 | -10/Exiles | Given EX-Vault access code 2276 | -10/Exiles | Opened EX-Vault 2296 | -10/Exiles | Found YOLO Cannon 2329 | -10/Exiles | Warned to stay clear of 0b10 Research branches 2377 | -10/Exiles | Met EX-DEC 2488 | -10/Exiles | Discovered new exit (range 10) 2505 | -10/Exiles | Identified exit to Mines 2509 | -10/Exiles | Left Exiles lab with YOLO Cannon 2509 | -10/Exiles | Entered Mines 2610 | -9/Mines | Discovered new exit (range 5) 2617 | -9/Mines | Identified exit to Materials 2668 | -9/Mines | Entered Materials 2668 | -8/Materials | Evolved 4 slots: Utility x4 3068 | -8/Materials | Build established: Scavenger-Skirmisher 4496 | -8/Materials | Build established: Skirmisher 4772 | -8/Materials | Identified exit to Garrison 4902 | -8/Materials | Discovered new exit (range 20) 4979 | -8/Materials | Identified exit to Factory 5035 | -8/Materials | Build established: Scavenger-Skirmisher 5078 | -8/Materials | Repaired Autogun 5110 | -8/Materials | Repaired Autogun 5148 | -8/Materials | Repaired Autogun 5175 | -8/Materials | Repaired Lgt. Armor Plating 5202 | -8/Materials | Repaired Lgt. Treads 5230 | -8/Materials | Repaired Lgt. Treads 6145 | -8/Materials | Build established: Hacker-Mutant 6280 | -8/Materials | Entered Garrison 6280 | -8/Garrison | Accompanied by 1 ally 6460 | -8/Garrison | Triggered checkpoint 6560 | -8/Garrison | Garrison Relay disabled 6938 | -8/Garrison | Core integrity fell below 50% 7122 | -8/Garrison | Triggered checkpoint 7427 | -8/Garrison | Discovered new exit (range 8) 7510 | -8/Garrison | Triggered checkpoint 7657 | -8/Garrison | Garrison Relay disabled 7852 | -8/Garrison | Triggered checkpoint 8030 | -8/Garrison | Triggered checkpoint 8327 | -8/Garrison | Spotted B-75 Beast 8502 | -8/Garrison | Core integrity fell below 20% 8679 | -8/Garrison | Discovered new exit (range 8) 8804 | -8/Garrison | Triggered checkpoint 8908 | -8/Garrison | Discovered new exit (range 12) 9056 | -8/Garrison | Triggered checkpoint 9245 | -8/Garrison | Destroyed by Y-45 Defender with Heavy Assault Rifle Last Messages --------------- 09009_ The unstable cave ceiling collapses. 09050_ Connecting with Garrison Terminal... >>Access(Emergency) Found 46 emergency access points. Map updated. 09056_ Beams of light sweep through the air. An alarm sounds. 09096_ Connecting with Door Terminal... >>Open(Door) Sealed Heavy Doors opened. 09119_ The unstable cave ceiling collapses. 09130_ ALERT: Garrison interior compromised. 09179_ G-47 Trooper springs to life. 09189_ G-47 Trooper destroyed. 09191_ The unstable cave ceiling collapses. 09202_ G-47 Trooper destroyed. 09206_ Slammed into Y-45 Defender. 09207_ Acquired 59 matter. 09208_ Slammed into Y-45 Defender. 09239_ Imp. Grenade Launcher destroyed. 09240_ Slammed into Y-45 Defender. Map ----- +----------------------------------------------------+ | ?????????????????????????????????????????????????? | | ?????????????????????????????????????????????????? | | ?????????????????????????????????????????????????? | | ?????????????????????????????????????????????????? | | ?????????????????????????????????????????????????? | | ?????????????????????????????????????????????????? | | ?????????????????????????????????????????????????? | | ?????????????????????????????????????????????????? | | ?????????????????????????????????????????????????? | | ?????????????????????????????????????????????????? | | ?????????????????????????????????????????????????? | | ???????????????????#####???#?????????????????????? | | ???????????????????# #??# ###??????????######### | | ???????????????????# ####+#"#??????????#""" """" | | ???????????????????# ## "#??????????#"""=! [" | | ???????????????????# ! "#??????????#""![% | | ???????????????????# #T##%["#??????????#"!=%!% | | ???????????????????########=#"#??????????#"|!#[ # | | ??????????????????????????# ###???##+##??#"**" " | | ??????????????????????????# #?????#! ]#??# [ " " | | ??????????????????????????# #?????#! ]#??#" #### | | ??????????????????????????# #??????! ]#??#"^ | | ????????????????????????###=#??????! ]#??#"" | | ????????????????????##### [ ########^#???### | | ????????????????????# Y #?????# | | ????????????????????# ###@ ;#####+###?????# #### | | ????????????????????# ##### T#####?????????# #??? | | ????????#####???????# # # #?????????# #??? | | ????????# #??????##+ # # ## # #???????# #??? | | ????????# < ######## #???????# #??? | | ????????# # # #???????#+"###+ | | ????????# = [ # ## # # #???????#=*=] | | ????????########+# ! # #### #???????#] /% | | ?????????????????#### #######????#???????+= ###+ | | ???############?????# ##??????????????????# #??? | | ???#""""""""""#?????+ +???????????????????# #??? | | ???#"""!!!!!!"#?????# #???????????????????# #??? | | ???#"" #?????# #??????????????+?+??# #??? | | ???#"! #?????# #???????????????????# #??? | | ???#"! #?????# #????????##+###""""## ##?? | | ???#"! ####### #####+#### ##+ | | ???#"! + | | ???#"" + | | ???#"""!!!!!!"################### ## ## ### | | ???#""""""""""#???????????????### ## ## ### | | ???############???????????????# # | | ??????????????????????????????#= = # | | ??????????????????????????????# # | | ??????????????????????????????# ^^ # | | ??????????????????????????????### ^##^%^^## ### | +----------------------------------------------------+ Best States ------------- Heat Dissipation 31 Energy Generation 14 Energy Capacity 280 Matter Stores 300 Matter Capacity 300 Sight Range 20 Robot Scan Range 15 Terrain Scan Density 10 Armor Coverage 225 Weapon Cycling 20 Evasion (%) 40 Recoil Reduction 2 Offensive Hacking 20 Defensive Hacking 20 Item Schematics ----------------- Lgt. Nuclear Core | -8/Materials | Scanalyzed Signal Interpreter | -8/Materials | Scanalyzed Terrain Scan Processor | -8/Materials | Scanalyzed Terrain Scanner | -8/Materials | Scanalyzed Robot Schematics ------------------ None Fabricated ------------ Nothing Alien Tech Used ----------------- None Achievements -------------- Quantum Hacking True Hacker Challenges ------------ None Game ------ Seed CouplerColdInterpreter Manual? 0 Play Time 00:48:04 Cumulative 28.3 hours Start 2023.11.28 @ 13:43:41 End 2023.11.28 @ 15:03:27 Sessions 1 Manual Loads 0 Difficulty Rogue Special Mode None Game No. 52 Rogue 52 Adventurer 0 Explorer 0 Win Type - Total 0 Types 0/0/0/0/0/0/0/0/0 Lore% 25 Gallery% 28 Achievement% 26 Wizard Run 0 Options --------- ASCII 0 Keyboard 1 Movement Numpad Keybinds 0 Fullscreen 2 Font 18/SmallcapsGlow Map View 76x50 Tactical HUD 1 Map Filters NONE Filters NONE Steam 1 RUN: 1cff3d8a-bf1d-48fc-b982-c06eacc15833